bitfinex-derivatives/quotes_BTCF0:USTF0_20260131
["timestamp","ask_amount","ask_price","bid_price","bid_amount"]
[1769901121346,0.00968546,78264.0,78243.0,0.10356]
[1769901121546,0.00968546,78264.0,78224.0,0.0128]
[1769901121547,0.19033114,78263.0,78197.0,0.00999999]
[1769901121735,0.003,78236.0,78201.0,0.012804]
[1769901121934,0.26544611,78220.0,78202.0,0.44931617]
[1769901122133,0.26544611,78220.0,78203.0,0.012804]
[1769901122342,0.26544611,78220.0,78207.0,0.57504003]
[1769901122645,0.26544611,78220.0,78205.0,0.57504003]
[1769901122944,0.003,78219.0,78202.0,0.44931617]
[1769901123342,0.0026455,78217.0,78198.0,0.10356]
[1769901123843,0.0026455,78217.0,78189.0,0.1036]
[1769901124043,0.0026455,78217.0,78189.0,0.55291617]
[1769901124250,0.26544611,78200.0,78189.0,0.55291617]
[1769901124444,0.26544611,78200.0,78189.0,0.1036]
[1769901124741,0.0026455,78192.0,78162.0,0.00973021]
[1769901124940,0.1036,78191.0,78174.0,0.00973021]
[1769901125139,0.076791,78239.0,78174.0,0.00973021]
[1769901125140,0.1902908,78200.0,78188.0,0.00973021]
[1769901125339,0.33684,78219.0,78199.0,0.57504003]
[1769901125340,0.1036,78211.0,78199.0,0.57504003]
[1769901125541,0.26544611,78220.0,78201.0,0.00777469]
[1769901126041,0.26544611,78220.0,78211.0,0.00777469]
[1769901126244,0.26544611,78221.0,78214.0,0.012802]
[1769901126449,0.26544611,78221.0,78198.0,0.00767504]
[1769901126650,1.1e-07,78208.0,78207.0,0.05159392]
[1769901126834,1.1e-07,78208.0,78203.0,0.05159392]
[1769901127038,1.1e-07,78213.0,78201.0,0.00774211]
[1769901127250,0.05200619,78227.0,78201.0,0.00774211]
[1769901127435,0.26544611,78220.0,78205.0,0.00767845]
[1769901127635,0.26544611,78220.0,78208.0,0.00767845]
[1769901128738,0.26544611,78220.0,78194.0,0.00767845]
[1769901128944,0.26544611,78210.0,78196.0,0.012805]
[1769901129146,0.26544611,78210.0,78197.0,0.00767845]
[1769901129543,0.26544611,78210.0,78199.0,0.00775789]
[1769901129945,0.26544611,78210.0,78200.0,0.012804]
[1769901130345,0.25513725,78210.0,78200.0,0.012804]
[1769901132344,0.25513725,78210.0,78199.0,0.012805]
[1769901132548,0.25513725,78210.0,78195.0,0.44052]
[1769901132549,0.26544611,78220.0,78211.0,0.012803]
[1769901132743,0.26544611,78220.0,78211.0,0.116443]
[1769901133143,0.26544611,78220.0,78214.0,0.012802]
[1769901133448,0.26544611,78220.0,78211.0,0.10364]
[1769901133649,0.06116256,78227.0,78211.0,0.10364]
[1769901134047,0.00915637,78226.0,78211.0,0.10364]
[1769901134349,0.05200619,78227.0,78211.0,0.116443]
[1769901135041,0.05200619,78227.0,78211.0,0.10364]
[1769901135442,0.00915637,78226.0,78211.0,0.10364]
[1769901135847,0.00915637,78234.0,78211.0,0.10364]
[1769901137250,0.00915637,78234.0,78211.0,0.116443]
[1769901137550,0.19203871,78233.0,78211.0,0.10364]
[1769901137750,0.00915637,78234.0,78211.0,0.10364]
[1769901137948,0.00915637,78232.0,78211.0,0.10364]
[1769901138344,0.00915637,78231.0,78211.0,0.10364]
[1769901138850,0.00915637,78231.0,78213.0,0.012802]
[1769901139444,0.00915637,78231.0,78211.0,0.10364]
[1769901139746,0.00915637,78224.0,78211.0,0.001]
[1769901141252,0.00915637,78224.0,78207.0,0.10364]
[1769901141444,0.012799,78235.0,78213.0,0.012802]
[1769901141953,0.00915637,78234.0,78210.0,0.012803]
[1769901142558,0.00915637,78234.0,78201.0,0.02040423]
[1769901142559,0.00915637,78234.0,78212.0,0.012802]
[1769901143552,0.10364,78240.0,78220.0,0.00754744]
[1769901143752,0.19202828,78239.0,78221.0,0.11118744]
[1769901144054,0.10364,78240.0,78223.0,0.00754744]
[1769901145350,0.19201201,78239.0,78221.0,0.453441]
[1769901145547,0.00915637,78239.0,78221.0,0.453441]
[1769901146052,0.19201664,78238.0,78221.0,0.453441]
[1769901146354,0.19201775,78237.0,78221.0,0.453441]
[1769901146550,0.00915637,78235.0,78221.0,0.44064]
[1769901146756,0.00915637,78235.0,78209.0,0.00686986]
[1769901146757,0.00915637,78233.0,78218.0,0.10364]
[1769901146950,0.00915637,78231.0,78218.0,0.10364]
[1769901147147,0.20118619,78230.0,78218.0,0.10364]
[1769901147348,0.19203106,78229.0,78218.0,0.10364]
[1769901147551,0.00915637,78230.0,78218.0,0.10364]
[1769901147752,0.19203101,78229.0,78218.0,0.10364]
[1769901147952,0.00915637,78238.0,78218.0,0.10364]
[1769901148148,0.00915637,78236.0,78218.0,0.10364]
[1769901148355,0.00915637,78234.0,78218.0,0.10364]
[1769901148552,0.00915637,78232.0,78218.0,0.10364]
[1769901148752,0.00915637,78230.0,78218.0,0.10364]
[1769901148952,0.192031,78229.0,78201.0,0.00686986]
[1769901149153,0.192031,78229.0,78210.0,0.012803]
[1769901150554,0.192031,78229.0,78212.0,0.012802]
[1769901150754,0.192031,78229.0,78213.0,0.10364]
[1769901151459,0.192031,78229.0,78213.0,0.116442]
[1769901152054,0.192031,78229.0,78213.0,0.10364]
[1769901152757,0.192031,78229.0,78214.0,0.012802]
[1769901152954,0.00915637,78253.0,78227.0,0.0128]
[1769901153557,0.00915637,78248.0,78223.0,0.10364]
[1769901153762,0.00915637,78236.0,78214.0,0.012802]
[1769901154062,0.00915637,78234.0,78207.0,0.00689848]
[1769901154260,0.00915637,78234.0,78190.0,0.012806]
[1769901154261,0.00915637,78224.0,78205.0,0.012804]
[1769901154460,0.00915637,78224.0,78205.0,0.10364]
[1769901155162,0.00915637,78224.0,78205.0,0.116444]
[1769901156159,0.00915637,78224.0,78205.0,0.10364]
[1769901157961,0.00915637,78224.0,78206.0,0.012803]
[1769901159062,0.00915637,78224.0,78205.0,0.10364]
[1769901159862,0.00915637,78224.0,78205.0,0.116444]
[1769901160765,0.00915637,78224.0,78207.0,0.012803]
[1769901161664,0.00915637,78224.0,78205.0,0.10364]
[1769901161860,0.02195737,78224.0,78205.0,0.10364]
[1769901162164,0.00915637,78224.0,78206.0,0.012804]
[1769901163165,0.00915637,78224.0,78205.0,0.10364]
[1769901164069,0.012801,78223.0,78205.0,0.116444]
[1769901164267,0.02190881,78223.0,78205.0,0.116444]
[1769901164469,0.02190981,78216.0,78196.0,0.012805]
[1769901164965,0.00910781,78215.0,78196.0,0.012805]
[1769901165162,0.00910781,78213.0,78193.0,0.012805]
[1769901165962,0.00910781,78213.0,78191.0,0.00658221]
[1769901166259,0.02190881,78219.0,78195.0,0.01938721]
[1769901166462,0.00910781,78218.0,78195.0,0.012805]
[1769901166662,0.012802,78215.0,78192.0,0.01938821]
[1769901166970,0.11274781,78222.0,78195.0,0.00658221]
[1769901167565,0.11274781,78222.0,78207.0,0.19145906]
[1769901167764,0.001,78218.0,78207.0,0.19145906]
[1769901167969,0.001,78218.0,78200.0,0.25527874]
[1769901167970,0.001,78218.0,78208.0,0.19145906]
[1769901168362,0.10364,78222.0,78208.0,0.19145906]
[1769901168567,0.10364,78222.0,78214.0,0.00673665]
[1769901168766,0.0128,78231.0,78216.0,0.19145906]
[1769901168970,0.0128,78229.0,78216.0,0.19145906]
[1769901169169,0.0128,78227.0,78220.0,0.15310051]
[1769901169469,0.0128,78227.0,78220.0,0.14915718]
[1769901169664,0.00910781,78229.0,78220.0,0.14915718]
[1769901169863,0.0128,78226.0,78216.0,0.19145906]
[1769901170460,0.02190781,78229.0,78216.0,0.19145906]
[1769901170666,0.00910781,78229.0,78216.0,0.19145906]
[1769901170967,0.01010781,78229.0,78217.0,0.19145906]
[1769901171668,0.00910781,78229.0,78217.0,0.19145906]
[1769901171868,0.0128,78228.0,78217.0,0.19145906]
[1769901172171,0.00910781,78229.0,78216.0,0.19145906]
[1769901172372,0.0128,78231.0,78217.0,0.19145906]
[1769901172572,0.0128,78231.0,78209.0,0.10364]
[1769901172573,0.10364,78233.0,78221.0,0.19818795]
[1769901172771,0.10364,78233.0,78223.0,0.19145906]
[1769901173171,0.10364,78233.0,78224.0,0.19145906]
[1769901173975,0.00910781,78240.0,78218.0,0.10364]
[1769901174176,0.012798,78238.0,78220.0,0.0097834]
[1769901174474,0.10364,78237.0,78220.0,0.0097834]
[1769901174774,0.012799,78236.0,78220.0,0.0097834]
[1769901174974,0.012799,78236.0,78218.0,0.10364]
[1769901175376,0.012799,78234.0,78218.0,0.10364]
[1769901175875,0.012799,78232.0,78218.0,0.10364]
[1769901176273,0.012799,78225.0,78218.0,0.10364]
[1769901176569,0.012797,78236.0,78218.0,0.10364]
[1769901176773,0.012799,78226.0,78218.0,0.10364]
[1769901177777,0.00910781,78234.0,78218.0,0.10364]
[1769901177977,0.012799,78223.0,78218.0,0.10364]
[1769901178780,0.012799,78227.0,78218.0,0.10364]
[1769901179175,0.012798,78230.0,78218.0,0.10364]
[1769901179373,0.10364,78237.0,78225.0,0.0097834]
[1769901179577,0.10364,78237.0,78227.0,0.0097834]
[1769901179874,0.012796,78244.0,78227.0,0.0097834]
[1769901180271,0.10364,78246.0,78232.0,0.0097834]
[1769901180472,0.10364,78256.0,78236.0,0.0097834]
[1769901180671,0.012794,78255.0,78237.0,0.012797]
[1769901180877,0.012795,78253.0,78236.0,0.1134234]
[1769901181183,0.00910781,78252.0,78229.0,0.33704]
[1769901181579,0.012796,78244.0,78229.0,0.33704]
[1769901181781,0.012796,78242.0,78229.0,0.33704]
[1769901182080,0.012797,78240.0,78229.0,0.33704]
[1769901182274,0.00910781,78243.0,78226.0,0.10364]
[1769901182472,0.00910781,78240.0,78226.0,0.10364]
[1769901182872,0.012798,78231.0,78226.0,0.10364]
[1769901183884,0.00910781,78240.0,78219.0,0.44068]
[1769901184284,0.00910781,78234.0,78219.0,0.10364]
[1769901184489,0.00910781,78232.0,78219.0,0.10364]
[1769901184784,0.0996049,78236.0,78220.0,0.0097834]
[1769901185285,0.1124019,78236.0,78220.0,0.0097834]
[1769901186579,0.00910781,78248.0,78220.0,0.38310938]
[1769901186783,0.012798,78233.0,78218.0,0.10364]
[1769901187085,0.012798,78233.0,78219.0,0.00995014]
[1769901187280,0.012797,78236.0,78219.0,0.00995014]
[1769901187986,0.10364,78246.0,78222.0,0.00995014]
[1769901188986,0.012797,78238.0,78222.0,0.00995014]
[1769901189893,0.012797,78238.0,78222.0,0.26522888]
[1769901190190,0.012797,78236.0,78223.0,0.00995014]
[1769901191084,0.012798,78232.0,78222.0,0.25527874]
[1769901191289,0.00992008,78241.0,78215.0,0.00995014]
[1769901191290,0.012798,78229.0,78217.0,0.25527874]
[1769901191485,0.00992008,78234.0,78216.0,0.25527874]
[1769901191687,0.012797,78239.0,78207.0,0.10364]
[1769901191688,0.02271908,78223.0,78207.0,0.10364]
[1769901191882,0.0128,78218.0,78201.0,0.31909843]
[1769901192086,0.0128,78219.0,78200.0,0.31909843]
[1769901192392,0.10364,78220.0,78197.0,0.116444]
[1769901192393,0.00992008,78218.0,78197.0,0.10364]
[1769901192594,0.012802,78206.0,78197.0,0.10364]
[1769901192893,0.00992008,78212.0,78197.0,0.10364]
[1769901193093,0.012802,78208.0,78197.0,0.10364]
[1769901193689,0.012799,78225.0,78198.0,0.00995014]
[1769901193895,0.26631758,78220.0,78201.0,0.00995014]
[1769901194090,0.26631758,78220.0,78205.0,0.012802]
[1769901196795,0.26631758,78220.0,78207.0,0.012802]
[1769901197498,0.26631758,78220.0,78214.0,0.19142498]
[1769901198094,0.012799,78225.0,78214.0,0.19142498]
[1769901198592,0.10364,78233.0,78217.0,0.00995014]
[1769901198792,0.10364,78233.0,78220.0,0.19142498]
[1769901198987,0.10364,78233.0,78217.0,0.00995014]
[1769901198988,0.10364,78233.0,78222.0,0.0128]
[1769901199190,0.10364,78233.0,78222.0,0.20422498]
[1769901199994,0.10364,78246.0,78229.0,0.19142498]
[1769901200191,0.10364,78246.0,78233.0,0.19142498]
[1769901200397,0.10364,78246.0,78232.0,0.19142498]
[1769901200797,0.10364,78257.0,78245.0,0.012796]
[1769901200996,0.10364,78263.0,78243.0,0.30501512]
[1769901201303,0.10364,78264.0,78246.0,0.012796]
[1769901201898,0.10364,78264.0,78248.0,0.012795]
[1769901202093,0.10364,78264.0,78247.0,0.19142498]
[1769901202300,0.10364,78264.0,78248.0,0.012795]
[1769901202893,0.10364,78264.0,78250.0,0.19142498]
[1769901203099,0.10364,78264.0,78256.0,0.012794]
[1769901203498,0.10364,78264.0,78253.0,0.012794]
[1769901204002,0.10364,78264.0,78253.0,0.02274414]
[1769901204301,0.116431,78276.0,78254.0,0.10364]
[1769901206305,0.116431,78276.0,78255.0,0.012794]
[1769901206504,0.00992008,78271.0,78254.0,0.10364]
[1769901206706,0.00992008,78269.0,78254.0,0.10364]
[1769901206903,0.00992008,78267.0,78254.0,0.10364]
[1769901209808,0.012792,78266.0,78254.0,0.10364]
[1769901210407,0.012793,78261.0,78245.0,0.19142498]
[1769901210607,0.26631758,78260.0,78246.0,0.116396]
[1769901211004,0.00992008,78259.0,78241.0,0.19142498]
[1769901211204,0.00992008,78255.0,78236.0,0.30782198]
[1769901211411,0.26631758,78246.0,78236.0,0.116397]
[1769901211610,0.26631758,78246.0,78236.0,0.1036]
[1769901212010,0.012796,78245.0,78236.0,0.09972856]
[1769901212210,0.26631758,78246.0,78236.0,0.09972856]
[1769901212901,0.012795,78253.0,78236.0,0.09972856]
[1769901213104,0.26631758,78250.0,78236.0,0.1096787]
[1769901213302,0.26631758,78250.0,78236.0,0.09972856]
[1769901213703,0.012795,78249.0,78236.0,0.09972856]
[1769901213907,0.012796,78247.0,78236.0,0.09972856]
[1769901215215,0.26631758,78250.0,78237.0,0.02274714]
[1769901215513,0.26631758,78250.0,78239.0,0.00995014]
[1769901222319,0.26631758,78250.0,78238.0,0.33792]
[1769901225529,5.8e-07,78250.0,78243.0,0.00989744]
[1769901225724,5.8e-07,78250.0,78238.0,0.33792]
[1769901225725,5.8e-07,78250.0,78247.0,0.00989744]
[1769901226024,0.26631758,78260.0,78250.0,0.02269244]
[1769901226425,0.26631758,78260.0,78250.0,0.00989744]
[1769901226615,0.26631758,78260.0,78251.0,0.012795]
[1769901227017,0.26631758,78260.0,78250.0,0.00989744]
[1769901227922,0.26631758,78260.0,78250.0,0.26490741]
[1769901228324,0.26631758,78260.0,78251.0,0.25500997]
[1769901229424,0.26631758,78260.0,78250.0,0.00989744]
[1769901229425,0.26631758,78260.0,78252.0,0.25500997]
[1769901229720,0.26631758,78260.0,78254.0,0.25500997]
[1769901229932,0.26631758,78280.0,78265.0,0.012793]
[1769901230130,0.26631758,78280.0,78269.0,0.012792]
[1769901230424,0.26631758,78280.0,78271.0,0.02268944]
[1769901230626,0.26631758,78280.0,78271.0,0.12628944]
[1769901231126,0.26631758,78280.0,78273.0,0.012791]
[1769901231525,0.26631758,78290.0,78277.0,0.02268844]
[1769901231827,0.26631758,78290.0,78278.0,0.34164]
[1769901232419,0.00941955,78289.0,78278.0,0.33756316]
[1769901232624,0.00941955,78289.0,78272.0,0.34176]
[1769901232926,0.012789,78286.0,78272.0,0.34176]
[1769901233126,0.00941955,78285.0,78272.0,0.34176]
[1769901233327,0.012789,78284.0,78272.0,0.34176]
[1769901234225,0.00941955,78285.0,78272.0,0.34176]
[1769901234528,0.26631758,78284.0,78272.0,0.34176]
[1769901235419,0.01279,78283.0,78272.0,0.34176]
[1769901235618,0.26631758,78284.0,78271.0,0.1036]
[1769901237228,0.27910658,78284.0,78271.0,0.1036]
[1769901238835,0.26631758,78284.0,78271.0,0.1036]
[1769901239131,0.26631758,78284.0,78272.0,0.012791]
[1769901239332,0.26631758,78284.0,78271.0,0.1036]
[1769901241133,0.27910658,78284.0,78267.0,0.012792]
[1769901241333,0.26631758,78279.0,78265.0,0.012793]
[1769901241628,0.26631758,78279.0,78263.0,0.012793]
[1769901241829,0.26631758,78279.0,78252.0,0.1036]
[1769901241830,0.00941955,78268.0,78252.0,0.1036]
[1769901242032,0.00941955,78265.0,78252.0,0.1036]
[1769901242433,0.00941955,78262.0,78247.0,0.1036]
[1769901242838,0.012793,78261.0,78247.0,0.1036]
[1769901243131,0.02221255,78261.0,78247.0,0.1036]
[1769901243437,0.26631758,78260.0,78247.0,0.1036]
[1769901244934,0.012793,78265.0,78247.0,0.1036]
[1769901245135,0.26631758,78262.0,78247.0,0.1036]
[1769901245932,0.26631758,78262.0,78248.0,0.00989744]
[1769901246127,0.1036,78282.0,78260.0,0.02269044]
[1769901246333,0.26631758,78270.0,78261.0,0.00989744]
[1769901246533,0.25155863,78270.0,78262.0,0.012793]
[1769901246732,0.25155863,78270.0,78263.0,0.00989744]
[1769901246933,0.26631758,78273.0,78263.0,0.00989744]
[1769901248340,0.26297513,78273.0,78263.0,0.00989744]
[1769901248538,0.26297513,78273.0,78267.0,0.00949655]
[1769901248741,0.26631758,78277.0,78267.0,0.00949655]
[1769901249134,0.00907054,78275.0,78259.0,0.25500997]
[1769901249333,0.00907054,78275.0,78257.0,0.70220997]
[1769901249735,0.00907054,78275.0,78257.0,0.71500397]
[1769901249938,0.00907054,78275.0,78257.0,0.459994]
[1769901250132,0.26631758,78276.0,78259.0,0.012793]
[1769901250339,0.26631758,78276.0,78259.0,0.02228955]
[1769901250640,0.26631758,78276.0,78261.0,0.012793]
[1769901251640,0.00907054,78275.0,78257.0,0.4472]
[1769901253138,0.00907054,78275.0,78257.0,0.459994]
[1769901253333,0.00907054,78275.0,78257.0,0.4472]
[1769901253536,0.00907054,78263.0,78242.0,0.76717843]
[1769901253746,0.26631758,78254.0,78244.0,0.012796]
[1769901254536,0.26631758,78254.0,78246.0,0.012796]
[1769901254731,0.26631758,78254.0,78243.0,0.012796]
[1769901254939,0.53263516,78254.0,78242.0,0.1036]
[1769901255246,0.5417057,78254.0,78242.0,0.1036]
[1769901255638,0.27538812,78254.0,78242.0,0.1036]
[1769901256343,0.00907054,78249.0,78242.0,0.1036]
[1769901256845,0.27538812,78249.0,78236.0,0.34504]
[1769901257145,0.02186454,78255.0,78236.0,0.34504]
[1769901257341,0.26631758,78254.0,78236.0,0.34504]
[1769901257745,9.353e-05,78253.0,78236.0,0.357837]
[1769901258141,9.353e-05,78253.0,78238.0,0.012797]
[1769901258943,9.353e-05,78253.0,78236.0,0.34504]
[1769901260050,9.353e-05,78253.0,78236.0,0.357837]
[1769901262142,9.353e-05,78253.0,78236.0,0.36733355]
[1769901262344,9.353e-05,78253.0,78238.0,0.012797]
[1769901262748,0.26631758,78252.0,78238.0,0.012797]
[1769901263641,0.26631758,78252.0,78236.0,0.35453655]
[1769901263839,0.26631758,78252.0,78237.0,0.012797]
[1769901264545,0.26631758,78252.0,78238.0,0.012797]
[1769901264845,0.26631758,78252.0,78240.0,0.012797]
[1769901265050,0.26631758,78252.0,78239.0,0.012797]
[1769901265245,0.26631758,78252.0,78236.0,0.357837]
[1769901265548,0.26631758,78252.0,78237.0,0.012797]
[1769901265746,0.26631758,78252.0,78239.0,0.012797]
[1769901265945,0.012793,78265.0,78243.0,0.00949655]
[1769901266141,0.012793,78265.0,78245.0,0.00949655]
[1769901266347,0.34632,78266.0,78246.0,0.00949655]
[1769901266846,0.34632,78266.0,78250.0,0.00949655]
[1769901267047,0.26631758,78265.0,78250.0,0.00949655]
[1769901267550,0.1036,78277.0,78259.0,0.012793]
[1769901267746,0.1036,78277.0,78259.0,0.02228955]
[1769901267953,0.11267054,78277.0,78257.0,0.1036]
[1769901268152,0.28817912,78276.0,78257.0,0.1036]
[1769901268347,0.00907054,78273.0,78257.0,0.1036]
[1769901268549,0.26631758,78276.0,78257.0,0.1036]
[1769901268550,0.00907054,78271.0,78257.0,0.1036]
[1769901268851,0.00907054,78263.0,78249.0,0.012795]
[1769901269047,0.00907054,78262.0,78246.0,0.09928832]
[1769901269246,0.27538812,78262.0,78246.0,0.09928832]
[1769901270252,0.00907054,78261.0,78246.0,0.09928832]
[1769901270448,0.02186354,78261.0,78246.0,0.09928832]
[1769901270852,0.00907054,78260.0,78246.0,0.09928832]
[1769901272746,0.02186354,78260.0,78246.0,0.09928832]
[1769901272952,0.02186454,78258.0,78246.0,0.09928832]
[1769901273748,0.00907054,78258.0,78246.0,0.09928832]
[1769901274352,0.02186454,78258.0,78246.0,0.09928832]
[1769901275549,0.00907054,78258.0,78246.0,0.09928832]
[1769901275855,0.27911058,78262.0,78247.0,0.012795]
[1769901276054,0.26631758,78259.0,78247.0,0.012795]
[1769901276751,0.26631758,78259.0,78246.0,0.09928832]
[1769901277356,0.08486755,78258.0,78246.0,0.09928832]
[1769901277758,0.09766155,78258.0,78246.0,0.09928832]
[1769901280757,0.08486755,78258.0,78246.0,0.09928832]
[1769901281057,0.26631758,78259.0,78246.0,0.11208432]
[1769901281257,0.26631758,78259.0,78247.0,0.08264226]
[1769901282363,0.36151318,78259.0,78246.0,0.09928832]
[1769901282766,0.37430718,78259.0,78246.0,0.09928832]
[1769901283263,0.36151318,78259.0,78246.0,0.09928832]
[1769901283864,0.36151318,78259.0,78246.0,0.11208432]
[1769901284164,0.26631758,78258.0,78246.0,0.11208432]
[1769901284565,0.26631758,78258.0,78246.0,0.012796]
[1769901285562,0.26217942,78258.0,78248.0,0.0993144]
[1769901285768,0.34684,78261.0,78251.0,0.0993144]
[1769901286169,0.012792,78268.0,78251.0,0.0993144]
[1769901286370,0.26217942,78267.0,78250.0,0.012795]
[1769901286965,0.0951956,78266.0,78240.0,0.1036]
[1769901287172,0.0951956,78264.0,78246.0,0.012796]
[1769901287371,0.1079886,78264.0,78240.0,0.1036]
[1769901287670,0.1079886,78262.0,78240.0,0.1036]
[1769901288270,0.1079886,78260.0,78241.0,0.012796]
[1769901288775,0.26217942,78259.0,78241.0,0.012796]
[1769901288976,0.26217942,78259.0,78250.0,0.001]
[1769901289572,0.26217942,78259.0,78243.0,0.012796]
[1769901290878,0.26217942,78259.0,78235.0,0.0993144]
[1769901291079,0.26217942,78259.0,78237.0,0.0993144]
[1769901291380,0.1079896,78258.0,78236.0,0.012797]
[1769901291575,0.0951956,78256.0,78240.0,0.012797]
[1769901291875,0.0951956,78256.0,78237.0,0.012797]
[1769901292079,0.35737502,78255.0,78237.0,0.012797]
[1769901292272,0.0951956,78254.0,78237.0,0.012797]
[1769901292474,0.0951956,78254.0,78239.0,0.012797]
[1769901292778,0.26217942,78253.0,78239.0,0.012797]
[1769901294173,0.35737502,78253.0,78237.0,0.012797]
[1769901295374,0.0951956,78252.0,78237.0,0.012797]
[1769901295983,0.0951956,78252.0,78239.0,0.012797]
[1769901296676,0.0951956,78252.0,78237.0,0.012797]
[1769901296875,0.0951956,78252.0,78238.0,0.012797]
[1769901297572,0.26217942,78253.0,78238.0,0.012797]
[1769901298581,0.26217942,78253.0,78239.0,0.012797]
[1769901300485,0.26217942,78253.0,78240.0,0.012797]
[1769901301085,0.26217942,78253.0,78241.0,0.012796]
[1769901301282,0.25833609,78253.0,78245.0,0.012796]
[1769901301683,0.1036,78257.0,78243.0,0.1121104]
[1769901301882,0.36193609,78257.0,78244.0,0.1121104]
[1769901302480,0.36193609,78257.0,78242.0,0.012796]
[1769901302786,0.0951956,78251.0,78228.0,0.1036]
[1769901302988,0.0951956,78248.0,78228.0,0.1036]
[1769901303584,0.0951956,78246.0,78229.0,0.012798]
[1769901303985,0.0951956,78246.0,78230.0,0.012798]
[1769901304388,0.0951956,78246.0,78231.0,0.012798]
[1769901304883,0.25833609,78247.0,78231.0,0.1121124]
[1769901305086,0.25833609,78247.0,78235.0,0.012797]
[1769901305682,0.1987956,78266.0,78246.0,0.0993144]
[1769901305880,0.23700891,78264.0,78251.0,0.0993144]
[1769901306089,0.0951956,78264.0,78246.0,0.1036]
[1769901306389,0.0951956,78262.0,78246.0,0.1036]
[1769901306687,0.0951956,78260.0,78246.0,0.1036]
[1769901306883,0.0951956,78258.0,78246.0,0.1036]
[1769901307081,0.14227425,78249.0,78237.0,0.1036]
[1769901307284,0.14227425,78257.0,78230.0,0.13678214]
[1769901307487,0.14227425,78252.0,78232.0,0.14958014]
[1769901307878,0.23700891,78251.0,78232.0,0.14958014]
[1769901308086,0.14227425,78250.0,78232.0,0.14958014]
[1769901308289,0.14227425,78250.0,78234.0,0.012798]
[1769901308492,0.14227425,78250.0,78236.0,0.012797]
[1769901309188,0.14227425,78250.0,78233.0,0.012798]
[1769901309383,0.23700891,78251.0,78233.0,0.13678214]
[1769901309688,0.1036,78263.0,78246.0,0.14957814]
[1769901309894,0.23304325,78262.0,78246.0,0.14957814]
[1769901310683,0.23304325,78262.0,78245.0,0.1036]
[1769901310684,0.23160286,78262.0,78252.0,0.13678214]
[1769901310888,0.23160286,78262.0,78247.0,0.012795]
[1769901311086,0.15506725,78261.0,78245.0,0.1036]
[1769901312793,0.14227425,78258.0,78245.0,0.1036]
[1769901313093,0.14227425,78256.0,78245.0,0.1036]
[1769901313293,0.14227425,78254.0,78245.0,0.1036]
[1769901313790,0.14227425,78252.0,78236.0,0.1036]
[1769901313994,0.14227425,78246.0,78227.0,0.1036]
[1769901314192,0.14227425,78246.0,78228.0,0.012799]
[1769901314393,0.14227425,78244.0,78227.0,0.1036]
[1769901314889,0.12800286,78243.0,78227.0,0.1036]
[1769901315093,0.14227425,78242.0,78227.0,0.1036]
[1769901315290,0.14227425,78242.0,78221.0,0.0128]
[1769901315884,0.14227425,78240.0,78220.0,0.0128]
[1769901316289,0.14227425,78238.0,78220.0,0.0128]
[1769901316889,0.14227425,78238.0,78215.0,0.13678214]
[1769901317294,0.14227425,78238.0,78215.0,0.26461197]
[1769901317494,0.14227425,78238.0,78215.0,0.27778755]
[1769901317690,1.1e-07,78225.0,78215.0,0.27778755]
[1769901318699,1.1e-07,78225.0,78222.0,0.0128]
[1769901318888,1.1e-07,78225.0,78219.0,0.0128]
[1769901319092,1.1e-07,78225.0,78221.0,0.0128]
[1769901319595,1.1e-07,78225.0,78216.0,0.12783882]
[1769901319596,0.12800286,78224.0,78216.0,0.12783882]
[1769901319796,0.26610711,78226.0,78215.0,0.02597658]
[1769901320096,0.26610711,78226.0,78218.0,0.0128]
[1769901320291,0.26610711,78228.0,78220.0,0.0128]
[1769901321097,0.26610711,78228.0,78217.0,0.0128]
[1769901321495,0.26610711,78228.0,78222.0,0.0128]
[1769901321798,1.1e-07,78228.0,78215.0,0.01317558]
[1769901321994,1.1e-07,78228.0,78214.0,0.24038214]
[1769901322198,1.1e-07,78228.0,78219.0,0.0128]
[1769901322700,1.1e-07,78228.0,78214.0,0.24038214]
[1769901322999,1.1e-07,78228.0,78218.0,0.0128]
[1769901323699,0.14227436,78228.0,78215.0,0.01319984]
[1769901323903,0.14227436,78228.0,78214.0,0.1036]
[1769901324196,0.15507336,78228.0,78214.0,0.1036]
[1769901324391,0.15507336,78228.0,78214.0,0.116788]
[1769901324392,0.14227425,78225.0,78214.0,0.116788]
[1769901325899,0.14227425,78225.0,78214.0,0.1036]
[1769901326202,0.14227425,78223.0,78214.0,0.1036]
[1769901326397,0.14227425,78223.0,78210.0,9.039e-05]
[1769901326598,0.14227425,78223.0,78210.0,0.01340737]
[1769901326903,0.14227425,78219.0,78205.0,0.10364]
[1769901327098,0.26610711,78215.0,78205.0,0.1170004]
[1769901327802,9.039e-05,78214.0,78205.0,0.1170004]
[1769901329504,9.039e-05,78214.0,78205.0,0.0133604]
[1769901329703,9.039e-05,78214.0,78199.0,0.14958514]
[1769901329904,9.039e-05,78214.0,78201.0,0.012803]
[1769901330201,9.039e-05,78214.0,78199.0,0.13678214]
[1769901330202,9.039e-05,78214.0,78203.0,0.012803]
[1769901330999,9.039e-05,78214.0,78200.0,0.012803]
[1769901331203,9.039e-05,78214.0,78200.0,0.02593958]
[1769901331403,9.039e-05,78214.0,78200.0,0.16272172]
[1769901331992,9.039e-05,78214.0,78202.0,0.012803]
[1769901332503,9.039e-05,78214.0,78203.0,0.13678214]
[1769901337598,0.3549606,78213.0,78203.0,0.13678214]
[1769901338905,0.3549606,78213.0,78200.0,0.01313658]
[1769901339101,0.3549606,78213.0,78199.0,0.012803]
[1769901339407,0.3549606,78213.0,78197.0,0.116444]
[1769901339606,0.1774803,78207.0,78198.0,0.012803]
[1769901339802,0.1774803,78207.0,78198.0,0.01310638]
[1769901340105,0.1774803,78207.0,78198.0,0.20136109]
[1769901342902,0.1774803,78207.0,78198.0,0.21451682]
[1769901347315,0.1928371,78206.0,78145.0,0.63728316]
[1769901347513,0.1774803,78180.0,78165.0,0.012809]
[1769901347713,0.1774803,78175.0,78158.0,0.2003898]
[1769901347916,0.1774803,78180.0,78157.0,0.44076]
[1769901347917,0.1774803,78168.0,78162.0,0.2003898]
[1769901348116,0.16932612,78172.0,78162.0,0.2003898]
[1769901348511,9.478e-05,78171.0,78162.0,0.2003898]
[1769901348708,9.478e-05,78171.0,78159.0,0.10368]
[1769901348910,0.19293188,78171.0,78160.0,0.10368]
[1769901349108,0.1774803,78170.0,78160.0,0.10368]
[1769901349316,0.1928371,78169.0,78146.0,0.467372]
[1769901349511,0.26655027,78160.0,78148.0,0.012812]
[1769901349711,0.26655027,78160.0,78150.0,0.12793367]